Cogmind - Beta 11 X4 --- EXPLORER MODE // 2021.05.18 @ 19:16:54 Player: Luigi Panache Result: System corrupted Performance ------------- Evolutions (3) 1500 Regions Visited (12) 2400 Robots Destroyed (76) 380 Value Destroyed (3818) 3818 Prototype IDs (25) 500 Alien Tech Used (0) 0 Bonus (2809) 2809 TOTAL SCORE: 11407 Bonus ------- High Alert Combat Kills 22 Follower Combat Kills 229 Entered Garrisons 800 Used RIF Installer 1500 Aligned with FarCom 300 Friendly Fire -42 Cogmind --------- Core Integrity 0/700 Matter 83/300 Energy 84/290 System Corruption 104% Temperature Cool (0) Movement Treading (1260) Ox11 Location -7/Garrison Parts ------- > --- POWER (1) -------- Reinforced Deuterium Engine > --- PROPULSION (5) --- Light Treads Light Treads Armored Wheel Armored Wheel Armored Wheel > --- UTILITY (6) ------ Humpback Targeting Computer Improved Targeting Computer Launcher Guidance Computer Advanced Shield Generator > --- WEAPON (2) ------- Flak Gun Advanced EMP Blaster > --- INVENTORY (35) --- Light Ion Engine Improved Deuterium Engine Light Treads Light Treads Compact Wheel Armored Wheel Armored Wheel Armored Wheel Armored Wheel Armored Wheel Armored Wheel Armored Wheel Armored Wheel Power Amplifier Heat Sink Huge Storage Unit Humpback Superbattery (1057) Experimental Sensor Array Relay Coupler [NC] (46) Relay Coupler [NC] (49) Relay Coupler [NC] (49) Relay Coupler [Grunt] (35) Relay Coupler [Sentry] (29) Relay Coupler [Sentry] (27) Relay Coupler [Sentry] (37) Relay Coupler [Sentry] (27) Relay Coupler [Sentry] (38) Relay Coupler [Sentry] (34) Relay Coupler [Hunter] (28) Particle Gun Autogun Flak Gun Grenade Launcher Peak State ------------ > --- POWER ------------ Reinforced Deuterium Engine > --- PROPULSION ------- Light Treads Light Treads Armored Wheel Armored Wheel Armored Wheel > --- UTILITY ---------- Humpback Targeting Computer Improved Targeting Computer Launcher Guidance Computer Advanced Shield Generator > --- WEAPON ----------- Flak Gun Advanced EMP Blaster > --- INVENTORY -------- Light Ion Engine Improved Deuterium Engine Light Treads Light Treads Compact Wheel Armored Wheel Armored Wheel Armored Wheel Armored Wheel Armored Wheel Armored Wheel Armored Wheel Armored Wheel Power Amplifier Heat Sink Huge Storage Unit Humpback Superbattery Experimental Sensor Array Relay Coupler [NC] Relay Coupler [NC] Relay Coupler [NC] Relay Coupler [Grunt] Relay Coupler [Sentry] Relay Coupler [Sentry] Relay Coupler [Sentry] Relay Coupler [Sentry] Relay Coupler [Sentry] Relay Coupler [Sentry] Relay Coupler [Hunter] Particle Gun Autogun Flak Gun Grenade Launcher [Rating: 44] Favorites ----------- Power Ion Engine Engine Ion Engine Power Core Nuclear Core Propulsion Light Treads Treads Light Treads Leg Aluminum Leg Wheel Compact Wheel Utility Targeting Computer Device Advanced Shield Generator Storage Humpback Processor Targeting Computer Hackware Hacking Suite Protection Light Armor Plating Weapon Light Assault Rifle Energy Gun EM Pulse Gun Ballistic Gun Light Assault Rifle Launcher Advanced EMP Blaster Special Weapon Improved Remote Datajack Build | -11 -10 -10 -10 -9 -8 -8 -8 -8 -7 -7 -7 -7 ------- Run | Scr Mat Min Exi Min Mat Gar Mat Gar Fac Gar Fac Gar Slots Evolved 7 | . 1 . . . 4 . . . 2 . . . Power . | . . . . . . . . . . . . . Propulsion 3 | . . . . . 2 . . . 1 . . . Utility 4 | . 1 . . . 2 . . . 1 . . . Weapon . | . . . . . . . . . . . . . Parts Attached 74 | 2 1 1 . . 11 8 6 2 5 33 4 1 Power 2 | . . . . . 1 . . . . 1 . . Engine 1 | . . . . . . . . . . 1 . . Core 1 | . . . . . 1 . . . . . . . Reactor . | . . . . . . . . . . . . . Propulsion 29 | 2 . . . . 6 4 3 . 2 11 . 1 Treads 14 | 2 . . . . 4 4 1 . . 2 . 1 Leg . | . . . . . . . . . . . . . Wheel 15 | . . . . . 2 . 2 . 2 9 . . Hover . | . . . . . . . . . . . . . Flight . | . . . . . . . . . . . . . Utility 21 | . 1 1 . . 3 2 1 1 1 8 3 . Device 3 | . . . . . . 1 . . 1 1 . . Storage 3 | . . 1 . . 1 . . . . 1 . . Processor 5 | . 1 . . . 1 . . . . 1 2 . Hackware 5 | . . . . . . . . . . 4 1 . Protection 5 | . . . . . 1 1 1 1 . 1 . . Artifact . | . . . . . . . . . . . . . Weapon 22 | . . . . . 1 2 2 1 2 13 1 . Energy Gun 2 | . . . . . . . . . 1 1 . . Energy Cannon . | . . . . . . . . . . . . . Ballistic Gun 14 | . . . . . 1 2 . 1 1 9 . . Ballistic Cannon . | . . . . . . . . . . . . . Launcher 5 | . . . . . . . 2 . . 2 1 . Special Weapon 1 | . . . . . . . . . . 1 . . Impact Weapon . | . . . . . . . . . . . . . Slashing Weapon . | . . . . . . . . . . . . . Piercing Weapon . | . . . . . . . . . . . . . Special Melee Weapon . | . . . . . . . . . . . . . Unidentified Prototypes 2 | . . . . . . . 1 . 1 . . . Corrupted Parts 13 | . . . . . 2 . . . . 10 . 1 System Corruption 101 | . . . . . 3 . . . . 88 . 10 Parts Lost 31 | . . . . . 2 4 . 1 1 23 . . Power 1 | . . . . . . . . . . 1 . . Propulsion 13 | . . . . . 1 2 . . 1 9 . . Utility 10 | . . . . . . 1 . 1 . 8 . . Weapon 7 | . . . . . 1 1 . . . 5 . . Highest Loss Streak 15 | . . . . . 2 3 . 1 1 15 . . Average Slot Usage (%) 90 | . 100 100 100 100 89 87 90 90 90 75 89 92 Engine 6 | . 12 12 12 12 6 . . . . 6 7 7 Core 2 | . . . . . 1 8 8 8 7 . . . Treads 21 | . 25 25 25 25 26 30 23 16 14 13 14 14 Wheel 8 | . . . . . 6 . 8 16 19 17 21 21 Device 1 | . . . . . . 3 . . 6 2 7 7 Storage 9 | . 12 12 12 12 8 8 8 8 7 7 7 7 Processor 13 | . 12 12 12 12 14 16 16 16 14 13 16 21 Protection 7 | . 12 12 12 12 8 4 8 7 7 1 . . Energy Gun 4 | . 12 12 12 12 2 . . . . 1 . . Ballistic Gun 11 | . 12 12 12 12 13 15 15 14 13 6 11 7 Naked Turns . | . . . . . . . . . . . . . Heaviest Build 230 | 21 21 91 91 91 214 216 219 219 216 228 230 230 Greatest Support 80 | 40 40 40 40 40 80 80 80 32 42 42 36 36 Greatest Overweight (x) 21 | . . 2 2 2 21 3 6 6 8 18 6 6 Average Overweight (x) 4 | . . . 2 2 6 2 4 6 5 7 6 6 Largest Inventory Capacity 35 | 10 10 25 25 25 35 35 35 35 35 35 35 35 Average Capacity 29 | 10 10 15 25 25 34 35 35 35 35 35 35 35 Most Carried 35 | 7 10 13 23 25 27 35 35 35 35 35 35 35 Average Carried 25 | 7 8 11 16 23 24 31 34 34 34 31 35 34 Final Capacity 35 | 10 10 25 25 25 35 35 35 35 35 35 35 35 Final Carried 35 | 7 10 13 23 25 27 35 35 34 35 35 35 35 Class Distribution -------------------- 57% | Hauler-Mutant 34% | Hacker-Mutant 6% | Bothacker-Mutant Dominant Class ---------------- Hacker-Mutant | -10/Materials Hacker-Mutant | -10/Mines Hacker-Mutant | -10/Exiles Hacker-Mutant | -9/Mines Hauler-Mutant | -8/Materials Hauler-Mutant | -8/Garrison Hauler-Mutant | -8/Materials Hauler-Mutant | -8/Garrison Hauler-Mutant | -7/Factory Hauler-Mutant | -7/Garrison Hauler-Mutant | -7/Factory Hauler-Mutant | -7/Garrison Resources | -11 -10 -10 -10 -9 -8 -8 -8 -8 -7 -7 -7 -7 ----------- Run | Scr Mat Min Exi Min Mat Gar Mat Gar Fac Gar Fac Gar Matter Collected 2278 | 200 186 66 . 1 156 224 237 193 195 743 77 . Remotely . | . . . . . . . . . . . . . Salvage Created 4364 | . 186 131 . 12 232 301 407 541 213 1630 182 529 Parts 193 | . 14 12 . 2 10 16 19 23 14 55 12 16 Haulers Intercepted 2 | . 2 . . . . . . . . . . . Recyclers Shooed 3 | . . . . . 2 . . . 1 . . . Parts Field Recycled . | . . . . . . . . . . . . . Retrieved Matter . | . . . . . . . . . . . . . Parts Self-Destructed . | . . . . . . . . . . . . . Prevented . | . . . . . . . . . . . . . Kills | -11 -10 -10 -10 -9 -8 -8 -8 -8 -7 -7 -7 -7 ------- Run | Scr Mat Min Exi Min Mat Gar Mat Gar Fac Gar Fac Gar Combat Hostiles Destroyed 65 | . 1 4 . 1 2 9 4 13 4 13 4 10 Guns 52 | . 1 4 . 1 2 9 4 12 4 13 2 . AOE 12 | . . . . . . . . 1 . . 2 9 Classes Destroyed 12 | . 3 2 . . 3 1 . . 1 1 1 . Builder 2 | . . 1 . . 1 . . . . . . . Hauler 2 | . 2 . . . . . . . . . . . Recycler 4 | . . . . . 1 . 3 . . . . . Operator 1 | . . . . . . . . . . . 1 . Watcher 2 | . 1 . . . 1 . . . . . . . Swarmer 15 | . . 2 . 1 . 2 . 3 . 3 2 2 Grunt 29 | . 1 2 . . . 4 2 8 2 3 2 5 Brawler 3 | . . . . . . . . . . 1 . 2 Duelist 3 | . . . . . . 1 . 1 . 1 . . Sentry 8 | . . . . . 1 2 2 1 . 2 . . Hunter 3 | . . . . . 1 . . . . 1 . 1 Programmer 4 | . . . . . . . . . 2 2 . . Best Kill Streak 10 | . 2 2 . 1 2 2 4 4 2 4 2 10 Combat Bots Only 10 | . 1 2 . 1 1 2 4 4 2 4 2 10 Max Kills in Single Turn 2 | . 1 1 . 1 1 1 1 1 1 1 1 2 Gunslinging . | . . . . . . . . . . . . . Exploded 2 | . . . . . . . . 1 . . 1 2 Melee . | . . . . . . . . . . . . . Uniques/NPCs Destroyed . | . . . . . . . . . . . . . Combat | -11 -10 -10 -10 -9 -8 -8 -8 -8 -7 -7 -7 -7 -------- Run | Scr Mat Min Exi Min Mat Gar Mat Gar Fac Gar Fac Gar Damage Taken 2816 | . 7 41 . 37 498 428 75 311 315 933 66 105 Core 206 | . . . . . 40 40 . 4 47 64 . 11 Absorbed by Shields 146 | . . . . . . . . . . 76 29 41 Core Remaining (%) 94 | 100 . . . 100 . . . 84 . . . . Volleys Fired 234 | . 10 7 . 1 29 34 12 33 16 62 8 22 Largest 2 | . 2 2 . 2 2 2 2 2 2 2 2 1 Hottest 81 | . 60 60 . 60 60 48 48 59 46 81 64 36 Shots Fired 387 | . 20 14 . 2 51 65 24 63 32 82 14 20 Gun 343 | . 20 14 . 2 51 65 24 59 32 63 11 2 Cannon . | . . . . . . . . . . . . . Launcher 36 | . . . . . . . . 4 . 11 3 18 Special 8 | . . . . . . . . . . 8 . . Kinetic 292 | . 10 7 . 1 36 65 24 59 32 45 11 2 Thermal 5 | . . . . . . . . . . 5 . . Explosive . | . . . . . . . . . . . . . Electromagnetic 82 | . 10 7 . 1 15 . . 4 . 24 3 18 Robot Hit Streak 72 | . 5 7 . 8 14 46 18 44 20 72 48 19 Robot Miss Streak 3 | . 1 1 . . 1 1 1 2 1 3 2 1 Penetration Max . | . . . . . . . . . . . . . Secondary Targets 4 | . . . . . . 2 . . 1 1 . . Max Gunslinging Chain 1 | . . . . . . 1 . . 1 1 . . Shots Hit Robots 305 | . 13 11 . 1 42 58 12 53 31 62 11 11 Core Hits 219 | . 7 7 . 1 12 22 14 27 10 87 18 14 Critical Kills . | . . . . . . . . . . . . . Critical Parts Destroyed 2 | . . . . . . 1 . 1 . . . . Critical Strikes 3 | . . . . . 1 1 . 1 . . . . Destroy 2 | . . . . . . 1 . 1 . . . . Corrupt 1 | . . . . . 1 . . . . . . . Melee Attacks . | . . . . . . . . . . . . . Impact . | . . . . . . . . . . . . . Slashing . | . . . . . . . . . . . . . Piercing . | . . . . . . . . . . . . . Sneak Attacks . | . . . . . . . . . . . . . Combat Hostiles . | . . . . . . . . . . . . . Follow-up Attacks . | . . . . . . . . . . . . . Damage Inflicted 7128 | . 170 127 . 12 413 1033 372 865 533 2379 386 838 Guns 4898 | . 162 115 . 12 402 1033 372 742 510 1268 257 25 Cannons . | . . . . . . . . . . . . . Explosions 2176 | . . . . . . . . 123 . 1111 129 813 Melee . | . . . . . . . . . . . . . Ramming 54 | . 8 12 . . 11 . . . 23 . . . Kinetic 4299 | . 31 42 . . 235 1033 372 742 510 1052 257 25 Thermal 86 | . . . . . . . . . . 42 . 44 Explosive . | . . . . . . . . . . . . . Electromagnetic 2689 | . 131 73 . 12 167 . . 123 . 1285 129 769 Impact . | . . . . . . . . . . . . . Slashing . | . . . . . . . . . . . . . Piercing . | . . . . . . . . . . . . . Highest Corruption 104 | . . . . . 3 3 3 3 . 94 94 104 Average Corruption 15 | . . . . . 2 3 3 3 . 15 94 94 Corruption Purged . | . . . . . . . . . . . . . Effects 179 | . . . . . 15 16 8 3 . 83 34 20 Message Errors 38 | . . . . . 6 5 1 1 . 17 4 4 Matter Fused 37 | . . . . . 2 1 4 1 . 19 9 1 Heat Flow Errors 15 | . . . . . 2 3 2 . . 5 3 . Energy Discharges 17 | . . . . . 1 4 1 1 . 7 1 2 Data Loss (minor) 18 | . . . . . 2 3 . . . 11 . 2 Data Loss (major) 7 | . . . . . . . . . . 5 1 1 Misfires 3 | . . . . . . . . . . 3 . . Alerts 1 | . . . . . . . . . . 1 . . Misdirections 34 | . . . . . . . . . . 12 14 8 Weapon Failures 9 | . . . . . 2 . . . . 3 2 2 Overload Shots . | . . . . . . . . . . . . . Overflow Damage . | . . . . . . . . . . . . . Projectiles . | . . . . . . . . . . . . . Explosions . | . . . . . . . . . . . . . Melee . | . . . . . . . . . . . . . Knockbacks 1 | . . . . . . . . . 1 . . . Impact 1 | . . . . . . . . . 1 . . . Kinetic . | . . . . . . . . . . . . . Secondary . | . . . . . . . . . . . . . Self-Inflicted Damage 68 | . . . . . . . . 12 11 10 19 16 Shots 9 | . . . . . . . . 2 . 4 2 1 Rammed 8 | . 1 3 . . 1 . . . 3 . . . Targets Rammed 10 | . 1 4 . . 2 . . . 3 . . . Kicked . | . . . . . . . . . . . . . Crushed 2 | . . 1 . . 1 . . . . . . . Highest Temperature 282 | . 61 79 . 26 204 282 206 30 . 279 259 . Average Temperature 62 | . 25 29 . 16 64 55 70 11 . 82 117 . Received Heat Transfer 1105 | . 6 27 . . 99 306 45 198 144 244 12 24 Effects 1 | . . . . . 1 . . . . . . . Energy Bleed 1 | . . . . . 1 . . . . . . . Siege Activations . | . . . . . . . . . . . . . Robots Corrupted 9 | . . . . . . . . . . 8 . 1 Combat Hostiles 1 | . . . . . . . . . . . . 1 Parts Fried 8 | . . . . . . . . . . 7 . 1 Impact Corruptions . | . . . . . . . . . . . . . Robots Melted . | . . . . . . . . . . . . . Combat Hostiles . | . . . . . . . . . . . . . Parts Melted . | . . . . . . . . . . . . . Heat Transferred 100 | . . . . . . . . . . 50 . 50 Parts Sabotaged . | . . . . . . . . . . . . . Parts Stolen . | . . . . . . . . . . . . . Parts Stripped . | . . . . . . . . . . . . . Power Chain Reactions 8 | . . . . . . . . . . 2 . 6 Missiles Intercepted . | . . . . . . . . . . . . . Alert | -11 -10 -10 -10 -9 -8 -8 -8 -8 -7 -7 -7 -7 ------- Run | Scr Mat Min Exi Min Mat Gar Mat Gar Fac Gar Fac Gar Peak Influence 436 | . 46 67 . 30 80 330 278 436 259 298 212 324 Initial 169 | . . 12 . . . 7 117 136 169 16 115 114 Average 124 | . 25 41 . 11 19 196 156 251 140 187 146 151 Maximum Alert Level 2 | . . . . . . 1 1 2 1 1 1 1 Low Security (%) 71 | 100 100 100 . 100 100 36 76 21 67 53 95 79 Level 1 28 | . . . . . . 63 23 66 32 46 5 20 Level 2 . | . . . . . . . . 11 . . . . Level 3 . | . . . . . . . . . . . . . Level 4 . | . . . . . . . . . . . . . Level 5 . | . . . . . . . . . . . . . High Security . | . . . . . . . . . . . . . Max Security . | . . . . . . . . . . . . . Squads Dispatched 4 | . . . . . . . 2 . . . 2 . Investigation 1 | . . . . . . . 1 . . . . . Extermination . | . . . . . . . . . . . . . Reinforcement 2 | . . . . . . . 1 . . . 1 . Assault . | . . . . . . . . . . . . . Garrison 1 | . . . . . . . . . . . 1 . Intercept . | . . . . . . . . . . . . . Construction Impeded . | . . . . . . . . . . . . . Haulers Reinforced . | . . . . . . . . . . . . . Cargo Convoy Interrupts . | . . . . . . . . . . . . . Stealth | -11 -10 -10 -10 -9 -8 -8 -8 -8 -7 -7 -7 -7 --------- Run | Scr Mat Min Exi Min Mat Gar Mat Gar Fac Gar Fac Gar Distress Signals . | . . . . . . . . . . . . . Communications Jammed . | . . . . . . . . . . . . . Distress Signals . | . . . . . . . . . . . . . Times Spotted 84 | . 2 4 . 2 5 9 6 14 4 21 5 12 Peak Tracking Total 5 | . 1 2 . 2 2 4 5 4 2 5 2 5 Tactical Retreats 7 | . . . . . . 3 . 2 . 1 . 1 Traps | -11 -10 -10 -10 -9 -8 -8 -8 -8 -7 -7 -7 -7 ------- Run | Scr Mat Min Exi Min Mat Gar Mat Gar Fac Gar Fac Gar Traps Triggered 23 | . . . . . . 4 . 2 . 14 . 3 Indirectly . | . . . . . . . . . . . . . Trap Hack Attempts . | . . . . . . . . . . . . . Triggered . | . . . . . . . . . . . . . Disarmed . | . . . . . . . . . . . . . Reprogrammed . | . . . . . . . . . . . . . Reused . | . . . . . . . . . . . . . Traps Extracted . | . . . . . . . . . . . . . Installed . | . . . . . . . . . . . . . Triggered 1 | . . . . 1 . . . . . . . . Exploded 1 | . . . . . . . 1 . . . . . Machines | -11 -10 -10 -10 -9 -8 -8 -8 -8 -7 -7 -7 -7 ---------- Run | Scr Mat Min Exi Min Mat Gar Mat Gar Fac Gar Fac Gar Machines Disabled 8 | . . . . . . 2 . . . 3 3 . Max in Single Turn 2 | . . . . . . 1 . . . 1 2 . Garrison Relay 5 | . . . . . . 2 . . . 3 . . Machines Sabotaged . | . . . . . . . . . . . . . Garrisons Compromised . | . . . . . . . . . . . . . Overloaded Fab Kills . | . . . . . . . . . . . . . Fab Network Shutdowns . | . . . . . . . . . . . . . Hacking | -11 -10 -10 -10 -9 -8 -8 -8 -8 -7 -7 -7 -7 --------- Run | Scr Mat Min Exi Min Mat Gar Mat Gar Fac Gar Fac Gar Machines Accessed 12 | . 1 . 2 . 2 . 1 . 5 . 1 . Terminals 4 | . 1 . . . 1 . . . 2 . . . Fabricators 1 | . . . . . . . . . 1 . . . Repair Stations . | . . . . . . . . . . . . . Recycling Units 1 | . . . . . . . . . 1 . . . Scanalyzers . | . . . . . . . . . . . . . Garrison Access 4 | . . . . . 1 . 1 . 1 . 1 . Total Hacks 25 | . 5 . 2 . 4 . 2 . 11 . 1 . Successful 19 | . 3 . 2 . 2 . 2 . 9 . 1 . Failed 6 | . 2 . . . 2 . . . 2 . . . Catastrophic . | . . . . . . . . . . . . . Database Lockouts . | . . . . . . . . . . . . . Manual 14 | . 4 . 1 . 3 . 1 . 5 . . . Terminals 14 | . 5 . . . 3 . . . 6 . . . Fabricators 2 | . . . . . . . . . 2 . . . Repair Stations . | . . . . . . . . . . . . . Recycling Units 2 | . . . . . . . . . 2 . . . Scanalyzers . | . . . . . . . . . . . . . Garrison Access 5 | . . . . . 1 . 2 . 1 . 1 . Terminal Hacks 9 | . 2 . 2 . 1 . . . 4 . . . Record 1 | . . . 1 . . . . . . . . . Part Schematic 1 | . 1 . . . . . . . . . . . Robot Analysis 1 | . . . . . . . . . 1 . . . Terminal Index 1 | . . . . . . . . . 1 . . . Garrison Index 2 | . . . . . 1 . . . 1 . . . Unreport Threat 1 | . . . . . . . . . 1 . . . Locate Traps 1 | . 1 . . . . . . . . . . . EX-Prototype ID Bank 1 | . . . 1 . . . . . . . . . Fabricator Hacks 2 | . . . . . . . . . 2 . . . Load Schematic 1 | . . . . . . . . . 1 . . . Build 1 | . . . . . . . . . 1 . . . Repair Station Hacks . | . . . . . . . . . . . . . Recycling Unit Hacks 1 | . . . . . . . . . 1 . . . Retrieve Components 1 | . . . . . . . . . 1 . . . Scanalyzer . | . . . . . . . . . . . . . Garrison Access Hacks 4 | . . . . . 1 . 1 . 1 . 1 . Unlock Access 4 | . . . . . 1 . 1 . 1 . 1 . Unauthorized Hacks 3 | . 1 . . . . . 1 . 1 . . . Terminals 2 | . 1 . . . . . . . 1 . . . Botnet 2 | . 1 . . . . . . . 1 . . . Fabricators . | . . . . . . . . . . . . . Repair Stations . | . . . . . . . . . . . . . Recycling Units . | . . . . . . . . . . . . . Scanalyzers . | . . . . . . . . . . . . . Garrison Access 1 | . . . . . . . 1 . . . . . Eject 1 | . . . . . . . 1 . . . . . Data Cores Recovered . | . . . . . . . . . . . . . Used . | . . . . . . . . . . . . . Hacking Detections 6 | . 1 . . . 1 . 1 . 3 . . . Full Trace Events 1 | . 1 . . . . . . . . . . . Feedback Events . | . . . . . . . . . . . . . Feedback Blocked . | . . . . . . . . . . . . . Robot Schematics Acquired . | . . . . . . . . . . . . . Robots Built . | . . . . . . . . . . . . . Matter . | . . . . . . . . . . . . . Time . | . . . . . . . . . . . . . Total Robot Build Rating . | . . . . . . . . . . . . . Part Schematics Acquired 1 | . 1 . . . . . . . . . . . Parts Built 1 | . . . . . . . . . 1 . . . Matter 102 | . . . . . . . . . 102 . . . Time 51 | . . . . . . . . . 51 . . . Total Part Build Rating 1 | . . . . . . . . . 1 . . . Parts Repaired . | . . . . . . . . . . . . . Time . | . . . . . . . . . . . . . Parts Recycled . | . . . . . . . . . . . . . Recycled Matter . | . . . . . . . . . . . . . Retrieved Matter . | . . . . . . . . . . . . . Retrieved Components 2 | . . . . . . . . . 2 . . . Parts Scanalyzed . | . . . . . . . . . . . . . Part Schematics Acquired . | . . . . . . . . . . . . . Parts Damaged . | . . . . . . . . . . . . . Bothacking | -11 -10 -10 -10 -9 -8 -8 -8 -8 -7 -7 -7 -7 ------------ Run | Scr Mat Min Exi Min Mat Gar Mat Gar Fac Gar Fac Gar Used RIF Installer 3 | . . . . . . 1 . 1 . 1 . . Hotswap 1 | . . . . . . . . 1 . . . . Threat Obfuscator 1 | . . . . . . . . . . 1 . . Robots Hacked 4 | . . . . . . . . . . 4 . . Non-combat . | . . . . . . . . . . . . . Combat 4 | . . . . . . . . . . 4 . . Robot Hacks Applied 4 | . . . . . . . . . . 4 . . formatsys_high 4 | . . . . . . . . . . 4 . . Relay Couplers Released 30 | . . . . . . 9 3 . 4 14 . . Ejected 3 | . . . . . . . 3 . . . . . Machine Destruction 23 | . . . . . . 9 . . . 14 . . Programmers 4 | . . . . . . . . . 4 . . . Attached 4 | . . . . . . . . . . 4 . . Robots Rewired . | . . . . . . . . . . . . . Allies Hacked . | . . . . . . . . . . . . . Hacks Repelled . | . . . . . . . . . . . . . Allies | -11 -10 -10 -10 -9 -8 -8 -8 -8 -7 -7 -7 -7 -------- Run | Scr Mat Min Exi Min Mat Gar Mat Gar Fac Gar Fac Gar Total Allies 5 | . . . . 1 . . . . . 4 . . Largest Group 2 | . . . . 1 . . . . . 2 1 1 Highest-Rated Group 64 | . . . . 31 . . . . . 64 32 32 Highest-Rated Ally 32 | . . . . 31 . . . . . 32 32 32 Total Orders 4 | . . . . . . . . . . 4 . . STAY 2 | . . . . . . . . . . 2 . . FOLLOW 2 | . . . . . . . . . . 2 . . Ally Attacks 32 | . . . . 1 . . . . . 20 3 8 Total Damage 1503 | . . . . . . . . . . 1133 77 293 Kills 5 | . . . . . . . . . . 4 . 1 Allies Corrupted . | . . . . . . . . . . . . . Allies Melted . | . . . . . . . . . . . . . Intel | -11 -10 -10 -10 -9 -8 -8 -8 -8 -7 -7 -7 -7 ------- Run | Scr Mat Min Exi Min Mat Gar Mat Gar Fac Gar Fac Gar Robot Analysis Total 1 | . . . . . . . . . 1 . . . Derelict Logs Recovered 2 | . . 1 . 1 . . . . . . . . Drone Launches . | . . . . . . . . . . . . . Drone Recoveries . | . . . . . . . . . . . . . Exploration | -11 -10 -10 -10 -9 -8 -8 -8 -8 -7 -7 -7 -7 ------------- Run | Scr Mat Min Exi Min Mat Gar Mat Gar Fac Gar Fac Gar Turns Passed 8585 | 3 274 1009 1055 603 976 1027 340 501 583 1756 300 158 Spaces Moved 2958 | 1 146 479 292 167 114 228 114 205 273 742 148 49 Core . | . . . . . . . . . . . . . Treads 1461 | 1 146 479 292 167 110 228 36 . . 2 . . Legs . | . . . . . . . . . . . . . Wheels 1497 | . . . . . 4 . 78 205 273 740 148 49 Hover . | . . . . . . . . . . . . . Flight . | . . . . . . . . . . . . . Fastest Speed 160 | 160 160 160 360 360 230 360 190 190 168 165 180 180 Average Speed 255 | 160 160 204 360 360 749 389 243 190 172 194 180 180 Slowest Speed 1260 | 160 160 360 360 360 1160 460 360 190 210 1260 180 180 Overloaded Moves . | . . . . . . . . . . . . . Propulsion Burnouts . | . . . . . . . . . . . . . Robots Hopped . | . . . . . . . . . . . . . Cave-ins Triggered . | . . . . . . . . . . . . . Exploration Rate (%) 37 | 2 26 97 69 56 17 51 9 50 7 73 6 19 Regions Visited 12 Branch Regions 3 Pre-discovered Areas 2 | . . . 1 1 . . . . . . . . Known Exits Taken 9 | 1 1 1 1 1 1 . 1 . 1 . 1 . Unknown Exits Taken . | . . . . . . . . . . . . . Scrap Searched 2 | . . 1 . 1 . . . . . . . . Spaces Dug . | . . . . . . . . . . . . . Terrain Destroyed 18 | . . . . . . . . . . 8 . 10 Melee . | . . . . . . . . . . . . . Projectile . | . . . . . . . . . . . . . AOE 18 | . . . . . . . . . . 8 . 10 Terrain Rammed . | . . . . . . . . . . . . . Walls Destroyed . | . . . . . . . . . . . . . Machines Disabled . | . . . . . . . . . . . . . Actions | -11 -10 -10 -10 -9 -8 -8 -8 -8 -7 -7 -7 -7 --------- Run | Scr Mat Min Exi Min Mat Gar Mat Gar Fac Gar Fac Gar Total 3625 | 2 170 495 298 169 174 310 164 254 351 975 164 99 Wait 97 | . 1 1 . . 11 18 5 . 51 7 3 . Move 2945 | . 145 478 291 166 114 226 113 203 272 740 148 49 Hop . | . . . . . . . . . . . . . Pick Up 90 | . 8 3 7 2 3 12 12 . 2 40 . 1 Fast Attach 19 | . . . . . 5 2 2 . 3 5 2 . Attach 19 | . 1 . . . 4 2 . 1 1 10 . . Detach 6 | . . . . . 3 . . . . 2 1 . Swap 36 | 2 . 1 . . 2 4 4 1 1 18 2 1 Drop 35 | . 4 1 . . 1 4 16 . 2 5 . 2 Fire 234 | . 10 7 . 1 29 34 12 33 16 62 8 22 Melee . | . . . . . . . . . . . . . Ram 3 | . . . . . . . . . 3 . . . Kick . | . . . . . . . . . . . . . Crush 7 | . 1 4 . . 2 . . . . . . . Escape Stasis 134 | . . . . . . 8 . 16 . 86 . 24 Rewire . | . . . . . . . . . . . . . Trap . | . . . . . . . . . . . . . Miscellaneous . | . . . . . . . . . . . . . Route ------- -11/Scrapyard -10/Materials -10/Mines (discovered 3 exits: *Mat x2 / *Exi) -10/Exiles -9/Mines -8/Materials -8/Garrison -8/Materials -8/Garrison (discovered 2 exits: *Fac x2) -7/Factory -7/Garrison (discovered 3 exits: *Fac x3) -7/Factory -7/Garrison History --------- Turn | Location | Event 4 | -11/Scrapyard | Identified exit to Materials 4 | -11/Scrapyard | Discovered exit to Materials (range 0) 4 | -11/Scrapyard | Entered Materials 4 | -10/Materials | Evolved 1 slot: Utility x1 25 | -10/Materials | Identified exit to Mines 25 | -10/Materials | Discovered exit to Mines (range 12) 278 | -10/Materials | Entered Mines 314 | -10/Mines | Build established: Hacker-Mutant 351 | -10/Mines | Identified exit to Materials 351 | -10/Mines | Discovered exit to Materials (range 13) 401 | -10/Mines | Discovered exit to Materials (range 10) 556 | -10/Mines | Learned 2 Materials zone layouts 580 | -10/Mines | Found a hidden stash of uninstalled traps 1269 | -10/Mines | Deemed a non-threat by the Exiles lab entrance 1272 | -10/Mines | Identified exit to Exiles 1272 | -10/Mines | Discovered exit to Exiles (range 5) 1287 | -10/Mines | Entered Exiles 1387 | -10/Exiles | Met 8R-AWN 1460 | -10/Exiles | Met EX-HEX 1564 | -10/Exiles | Met EX-BIN 1607 | -10/Exiles | Aligned with FarCom system 1611 | -10/Exiles | Given EX-Vault access code 1697 | -10/Exiles | Opened EX-Vault 1715 | -10/Exiles | Found Superbattery 1792 | -10/Exiles | Warned to stay clear of 0b10 Research branches 2022 | -10/Exiles | Met EX-DEC 2101 | -10/Exiles | Learned location of Zion (-6) 2313 | -10/Exiles | Identified exit to Mines 2313 | -10/Exiles | Discovered exit to Mines (range 10) 2342 | -10/Exiles | Left Exiles lab with Superbattery 2342 | -10/Exiles | Entered Mines 2346 | -9/Mines | Received a Mining Laser from a helpful Derelict 2481 | -9/Mines | YI-UF0 nonchalantly dropped a Grenade Launcher on the ground 2705 | -9/Mines | Learned location of Recycling (-9) 2868 | -9/Mines | Found a damaged Exp. Sensor Array with a note attached 2875 | -9/Mines | Found Prototype Device 2930 | -9/Mines | Identified exit to Materials 2930 | -9/Mines | Discovered exit to Materials (range 3) 2945 | -9/Mines | Entered Materials 2945 | -8/Materials | Evolved 4 slots: Propulsion x2, Utility x2 3251 | -8/Materials | Build established: Hauler-Mutant 3921 | -8/Materials | Identified exit to Garrison 3921 | -8/Materials | Entered Garrison 3939 | -8/Garrison | Installed Relay Interface Framework 4024 | -8/Garrison | Triggered checkpoint 4089 | -8/Garrison | Garrison Relay disabled 4278 | -8/Garrison | Triggered checkpoint 4412 | -8/Garrison | Lost 3 parts (2n1u) 4566 | -8/Garrison | Identified exit to Materials 4566 | -8/Garrison | Discovered exit to Materials (range 10) 4682 | -8/Garrison | Triggered checkpoint 4753 | -8/Garrison | Garrison Relay disabled 4948 | -8/Garrison | Entered Materials 5286 | -8/Materials | Identified exit to Garrison 5288 | -8/Materials | Entered Garrison 5354 | -8/Garrison | Triggered checkpoint 5503 | -8/Garrison | Identified exit to Factory 5503 | -8/Garrison | Discovered exit to Factory (range 15) 5670 | -8/Garrison | Triggered checkpoint 5749 | -8/Garrison | Discovered exit to Factory (range 10) 5775 | -8/Garrison | Expanded RIF knowledge: Hotswap 5789 | -8/Garrison | Entered Factory 5789 | -7/Factory | Evolved 2 slots: Propulsion x1, Utility x1 5980 | -7/Factory | Fabricated Huge Storage Unit (x1) 6211 | -7/Factory | Identified exit to Garrison 6372 | -7/Factory | Entered Garrison 6389 | -7/Garrison | Triggered checkpoint 6486 | -7/Garrison | Triggered checkpoint 6496 | -7/Garrison | Build established: Bothacker-Mutant 6593 | -7/Garrison | Triggered checkpoint 6655 | -7/Garrison | Spotted B-75 Beast 6658 | -7/Garrison | Identified exit to Factory 6658 | -7/Garrison | Discovered exit to Factory (range 14) 6683 | -7/Garrison | Triggered checkpoint 6850 | -7/Garrison | Lost 15 parts (5n5u5w) 6949 | -7/Garrison | Garrison Relay disabled 7102 | -7/Garrison | Build established: Hauler-Mutant 7337 | -7/Garrison | Discovered exit to Factory (range 10) 7373 | -7/Garrison | Expanded RIF knowledge: Threat Obfuscation 7514 | -7/Garrison | System corruption reached 10% 7528 | -7/Garrison | Triggered checkpoint 7598 | -7/Garrison | Garrison Relay disabled 7744 | -7/Garrison | Triggered checkpoint 7763 | -7/Garrison | System corruption reached 30% 7838 | -7/Garrison | Garrison Relay disabled 7881 | -7/Garrison | Discovered exit to Factory (range 15) 8128 | -7/Garrison | Entered Factory 8128 | -7/Factory | Accompanied by 1 ally 8364 | -7/Factory | Garrison activated, responded to threat 8428 | -7/Factory | Identified exit to Garrison 8428 | -7/Factory | Entered Garrison 8428 | -7/Garrison | Accompanied by 1 ally 8528 | -7/Garrison | Triggered checkpoint 8569 | -7/Garrison | Triggered checkpoint 8587 | -7/Garrison | System corrupted Last Messages --------------- 08554_ UXKX4X85GK5XYA0ATLFR9EWCC4ICVM62 08554_ Extracted 47 energy. 08555_ Chain reaction triggered in Corrupted Lgt. Nuclear Core. 08555_ G-47 Trooper destroyed. 08556_ Extracted 47 energy. 08557_ Mace fried. 08557_ B-48 Gladiator destroyed. 08558_ Extracted 47 energy. 08559_ Acquired Superbattery. 08569_ 3%S5OTL:KV89CTB>FLDPCS2=OE2HM8ZU J7 08571_ Chain reaction triggered in Corrupted Rnf. Deuterium Engine. 08573_ S-27 Virus destroyed. 08573_ Chain reaction triggered in Corrupted Lgt. Nuclear Core. 08579_ System corrupted: Adv. EMP Blaster failed to launch. 08581_ G-47 Trooper destroyed. 08581_ Chain reaction triggered in Corrupted Lgt. Nuclear Core. 08584_ System corrupted: Component data lost. 08586_ Integrated Corrupted Lgt. Treads (+10). 08586_ Dropped Lgt. Treads. 08587_ Cogmind system terminally corrupted. Map ----- +----------------------------------------------------+ | ?????????????????????????????????????????????????? | | ?????????????????????????????????????????????????? | | ?????????????????????????????????????????????????? | | ?????????????????????????????????????????????????? | | ?????????????????????????????????????????????????? | | ?????????????????????????????????????????????????? | | ?????????????????????????????????????????????????? | | ?????????????????????????????????????????????????? | | ?????????????????????????????????????????????????? | | ?????????????????????????????????????????????????? | | ??????????????????g??g?? ??????????????????????? | | ???????????????????????# ??????????????????????? | | ?????????????????? ?? ??????????????????????? | | ?????????????????? ?? #?????????????????????? | | ?????????????????? ? #?????????????????????? | | ?????????????? ???? ?# #?????????????????????? | | ????????????? ## ## ##????????????????????? | | ????????????? = ????????????????????? | | ???????????? ? [%= ????????????????????? | | ???????????? =% % [?????????????????????? | | ???????????? % ? % ?????????????????????? | | ????????????# == # = ###???????????????????? | | ???????????## ; #%% #???????????????????? | | ?????????? ####?????????????????? | | ?????????? !% #?????????????????? | | ????????????# @ ;#????????????????????? | | ?????????????????# ## ##????????????????????? | | ????????????????????gg?# #?????????????????????? | | ???????????????????????# #?????????????????????? | | ???????????????????????# #?????????????????????? | | ???????????????????????# Y #?????????????????????? | | ???????????????????????# #?????????????????????? | | ???????????????????????# ####################### | | ???????????????????????# | | ???????????????????????# ^ | | ???????????????????????# ^^ | | ???????????????????????##################### #### | | ???????????????????????????????????????????# #??? | | ???????????????????????????????????????????# #??? | | ???????????????????????????????????????????# #??? | | ??????????????????????????????????????????? #??? | | ??????????????????????????????????????????? #??? | | ??????????????????????????????????????????#####??? | | ?????????????????????????????????????????????????? | | ?????????????????????????????????????????????????? | | ?????????????????????????????????????????????????? | | ?????????????????????????????????????????????????? | | ?????????????????????????????????????????????????? | | ?????????????????????????????????????????????????? | | ?????????????????????????????????????????????????? | +----------------------------------------------------+ Best States ------------- Heat Dissipation 41 Energy Generation 18 Energy Capacity 290 Matter Stores 300 Matter Capacity 300 Sight Range 16 Terrain Scan Density 10 Power Amplification 20 Armor Coverage 150 Resistance: KI 35 Resistance: TH 35 Resistance: EX 35 Resistance: EM 35 Resistance: I 35 Resistance: S 35 Resistance: P 35 Weapon Shielding 33 Evasion (%) 40 Targeting Accuracy 11 Launcher Accuracy 20 Recoil Reduction 4 Offensive Hacking 30 Relay Coupler Types 26 Relay Coupler Value 1 Item Schematics ----------------- Huge Storage Unit | -10/Materials | Hacked Robot Schematics ------------------ None Fabricated ------------ Huge Storage Unit | x1 | -7/Factory Alien Tech Used ----------------- None Achievements -------------- None Challenges ------------ None Game ------ Seed ThunderCannonRegulator Manual? 0 Play Time 00:37:07 Cumulative 350.6 hours Start 2021.05.15 @ 20:01:20 End 2021.05.18 @ 19:16:54 Sessions 2 Manual Loads 0 Difficulty Explorer Special Mode None Game No. 346 Rogue 146 Adventurer 112 Explorer 88 Win Type - Total 24 Types 17/0/5/2/0/0/0/0/0 Lore% 82 Gallery% 89 Achievement% 71 Wizard Run 0 Options --------- ASCII 0 Keyboard 0 Movement Numpad Keybinds 0 Fullscreen 2 Font 18/TerminusBold Map View 76x50 Tactical HUD 1 Map Filters NONE Filters NONE Steam 1 RUN: ffb80356-1367-4754-9f5a-308b0708f6ca